bitfinex/quotes_BTCUSD_20241110
["timestamp","ask_amount","ask_price","bid_price","bid_amount"]
[1731279256226,0.248242,80567.0,80555.0,0.248277]
[1731279256423,0.124127,80563.0,80558.0,0.124133]
[1731279256909,0.124127,80563.0,80559.0,0.124132]
[1731279257413,0.248243,80566.0,80553.0,0.1]
[1731279257564,0.124128,80562.0,80556.0,0.124136]
[1731279257765,0.124128,80562.0,80557.0,0.124135]
[1731279258377,0.248252,80563.0,80553.0,0.1]
[1731279258585,0.248256,80562.0,80553.0,0.1]
[1731279258950,0.124136,80557.0,80556.0,0.000839]
[1731279259875,0.0762,80559.0,80556.0,0.000839]
[1731279260136,0.124135,80557.0,80556.0,0.000839]
[1731279262900,0.42708625,80557.0,80556.0,0.000839]
[1731279263972,0.55802846,80557.0,80556.0,0.000839]
[1731279264331,0.25507721,80557.0,80556.0,0.000839]
[1731279264549,0.26507721,80557.0,80556.0,0.000839]
[1731279264706,0.56302846,80557.0,80556.0,0.000839]
[1731279264911,0.26007721,80557.0,80556.0,0.000839]
[1731279265248,0.56302846,80557.0,80556.0,0.000839]
[1731279267309,0.26007721,80557.0,80556.0,0.000839]
[1731279271475,0.44137721,80557.0,80556.0,0.000839]
[1731279272268,0.44337721,80557.0,80556.0,0.000839]
[1731279272479,0.44137721,80557.0,80556.0,0.000839]
[1731279273382,0.74632846,80557.0,80556.0,0.000839]
[1731279274086,0.74432846,80557.0,80556.0,0.000839]
[1731279274496,0.79072846,80557.0,80556.0,0.000839]
[1731279274887,0.79272846,80557.0,80556.0,0.000839]
[1731279275307,0.79072846,80557.0,80556.0,0.000839]
[1731279275649,0.48977721,80557.0,80556.0,0.000839]
[1731279276179,0.63218566,80557.0,80556.0,0.000839]
[1731279277299,0.63018566,80557.0,80556.0,0.000839]
[1731279277506,0.48777721,80557.0,80556.0,0.000839]
[1731279280594,0.005,80521.0,80520.0,0.18577692]
[1731279280936,0.124225,80499.0,80498.0,0.001406]
[1731279281523,0.139225,80499.0,80498.0,0.001406]
[1731279281737,0.34256721,80499.0,80498.0,0.001406]
[1731279281888,0.12426,80476.0,80475.0,0.001406]
[1731279282686,0.124256,80479.0,80475.0,0.001406]
[1731279282883,0.124258,80478.0,80475.0,0.001406]
[1731279283087,0.248502,80482.0,80475.0,0.001406]
[1731279283307,0.248493,80485.0,80475.0,0.001406]
[1731279283492,0.248492,80486.0,80475.0,0.001406]
[1731279283695,0.005,80489.0,80475.0,0.077506]
[1731279283949,0.124251,80482.0,80475.0,0.077506]
[1731279284265,0.43424192,80494.0,80477.0,0.248518]
[1731279284466,0.124236,80492.0,80485.0,0.124245]
[1731279284607,0.18577692,80493.0,80479.0,0.14240845]
[1731279284814,0.31001192,80493.0,80486.0,0.124244]
[1731279285063,0.124231,80495.0,80477.0,0.12594221]
[1731279285328,0.30295125,80520.0,80493.0,0.14240845]
[1731279285510,0.30295125,80520.0,80485.0,0.01]
[1731279285511,0.124196,80518.0,80509.0,0.124209]
[1731279285744,0.248392,80518.0,80509.0,0.124209]
[1731279285946,0.124199,80516.0,80509.0,0.124209]
[1731279286367,0.124195,80519.0,80512.0,0.124204]
[1731279286537,0.248385,80520.0,80506.0,0.248428]
[1731279286692,0.124199,80516.0,80509.0,0.124208]
[1731279286893,0.248388,80519.0,80507.0,0.248425]
[1731279287166,0.124197,80517.0,80510.0,0.124207]
[1731279287445,0.124199,80516.0,80510.0,0.124207]
[1731279287965,0.248391,80518.0,80510.0,0.124207]
[1731279288727,0.248394,80517.0,80500.0,0.1]
[1731279288953,0.248394,80517.0,80498.0,0.1]
[1731279288954,0.248394,80517.0,80508.0,0.12421]
[1731279289186,0.124201,80515.0,80508.0,0.12421]
[1731279289363,0.124201,80515.0,80504.0,0.248434]
[1731279289364,0.124201,80515.0,80509.0,0.124209]
[1731279289591,0.248394,80517.0,80505.0,0.248431]
[1731279289770,0.124202,80514.0,80505.0,0.248431]
[1731279289973,0.124202,80514.0,80508.0,0.12421]
[1731279290324,0.124202,80514.0,80509.0,0.124209]
[1731279291358,0.248394,80517.0,80509.0,0.124209]
[1731279291566,0.1242,80515.0,80509.0,0.124209]
[1731279291767,0.248394,80517.0,80497.0,0.005]
[1731279291985,0.248404,80514.0,80504.0,0.124215]
[1731279292342,0.124208,80510.0,80504.0,0.124215]
[1731279292766,0.124206,80511.0,80504.0,0.124215]
[1731279293008,0.12594221,80520.0,80503.0,0.1]
[1731279293208,0.124208,80510.0,80504.0,0.124216]
[1731279293939,0.124208,80510.0,80503.0,0.1]
[1731279294110,0.124208,80510.0,80505.0,0.124215]
[1731279295336,0.124207,80511.0,80504.0,0.124216]
[1731279295556,0.124207,80511.0,80503.0,0.1]
[1731279295557,0.124209,80510.0,80505.0,0.124215]
[1731279295801,0.124217,80504.0,80503.0,0.01669055]
[1731279296012,0.248419,80509.0,80489.0,0.248478]
[1731279296222,0.005,80504.0,80483.0,0.07316779]
[1731279296388,0.124237,80491.0,80490.0,0.18577692]
[1731279296609,0.124237,80491.0,80481.0,0.248503]
[1731279296610,0.124242,80488.0,80483.0,0.124249]
[1731279296804,0.621117,80500.0,80484.0,0.124247]
[1731279296962,0.248444,80501.0,80481.0,0.01635215]
[1731279296963,0.18577692,80495.0,80481.0,0.01635215]
[1731279297320,0.12424,80490.0,80483.0,0.124248]
[1731279297526,0.12424,80490.0,80481.0,0.248504]
[1731279297527,0.124239,80490.0,80485.0,0.124246]
[1731279297730,0.248468,80493.0,80482.0,0.248502]
[1731279297932,0.248471,80492.0,80483.0,0.124249]
[1731279298230,0.248468,80493.0,80479.0,0.20259622]
[1731279298231,0.18577692,80500.0,80481.0,0.124252]
[1731279298449,0.18577692,80500.0,80479.0,0.20259622]
[1731279298450,0.124246,80486.0,80480.0,0.124254]
[1731279298825,0.124244,80487.0,80480.0,0.124254]
[1731279299027,0.496906,80498.0,80479.0,0.0168193]
[1731279299028,0.248481,80490.0,80479.0,0.0168193]
[1731279299286,0.248481,80490.0,80478.0,0.248513]
[1731279299451,0.124246,80485.0,80480.0,0.124253]
[1731279299820,0.124251,80482.0,80475.0,0.001406]
[1731279300017,0.248491,80486.0,80475.0,0.125667]
[1731279300268,0.248484,80488.0,80477.0,0.124258]
[1731279300499,0.248487,80487.0,80477.0,0.124258]
[1731279300707,0.124251,80482.0,80477.0,0.124258]
[1731279301302,0.24849,80486.0,80475.0,0.01824666]
[1731279301543,0.124251,80482.0,80476.0,0.124259]
[1731279302220,0.005,80501.0,80484.0,0.124248]
[1731279302421,0.18577692,80488.0,80484.0,0.124248]
[1731279302535,0.248453,80498.0,80481.0,0.248503]
[1731279302743,0.12594221,80499.0,80476.0,0.248521]
[1731279302947,0.01648891,80513.0,80476.0,0.248521]
[1731279302948,0.005,80510.0,80487.0,0.18577692]
[1731279303155,0.18577692,80501.0,80500.0,0.124223]
[1731279303360,0.124215,80505.0,80489.0,0.248481]
[1731279303573,0.30295125,80516.0,80497.0,0.1]
[1731279303777,0.18577692,80510.0,80509.0,0.124208]
[1731279304014,0.18577692,80510.0,80509.0,0.1334086]
[1731279304275,0.124194,80519.0,80512.0,0.124203]
[1731279304447,0.124196,80518.0,80512.0,0.124203]
[1731279304780,0.30295125,80520.0,80513.0,0.00919537]
[1731279305171,0.30295125,80520.0,80519.0,0.124194]
[1731279305371,0.18577692,80525.0,80523.0,0.124187]
[1731279305590,0.124174,80532.0,80524.0,0.00919537]
[1731279305713,0.124174,80532.0,80526.0,0.124183]
[1731279305912,0.0505,80544.0,80519.0,0.348388]
[1731279305913,0.00813427,80531.0,80527.0,0.00919537]
[1731279306182,0.00813427,80531.0,80530.0,0.247177]
[1731279306391,0.00813427,80531.0,80530.0,0.38731458]
[1731279306594,0.00168,80557.0,80530.0,0.38731458]
[1731279306595,0.124139,80555.0,80548.0,0.124149]
[1731279306798,0.124139,80555.0,80548.0,0.13334437]
[1731279307012,0.00827489,80549.0,80548.0,0.13334437]
[1731279307429,0.00168,80557.0,80556.0,0.124137]
[1731279307654,0.00168,80557.0,80556.0,0.13333237]
[1731279307808,0.00168,80557.0,80556.0,0.23333237]
[1731279308007,0.00999458,80557.0,80556.0,0.23333237]
[1731279308299,0.00168,80557.0,80556.0,0.23333237]
[1731279308640,0.00168,80557.0,80556.0,0.23581486]
[1731279308868,0.00168,80557.0,80556.0,0.36175707]
[1731279309044,0.00168,80557.0,80556.0,0.39727458]
[1731279309423,0.00168,80557.0,80556.0,0.52477458]
[1731279311103,0.002918,80584.0,80564.0,0.495373]
[1731279311104,0.18577692,80565.0,80564.0,0.495373]
[1731279311319,0.18577692,80565.0,80564.0,0.63051058]
[1731279311472,0.13815992,80578.0,80565.0,0.1]
[1731279311868,0.13815992,80578.0,80577.0,0.124104]
[1731279312074,0.13815992,80578.0,80577.0,0.13329937]
[1731279312223,0.002918,80584.0,80578.0,0.124103]
[1731279312423,0.124095,80583.0,80578.0,0.00919537]
[1731279312631,0.002918,80584.0,80577.0,0.00919537]
[1731279312830,0.002918,80584.0,80578.0,0.124103]
[1731279313034,0.002918,80584.0,80578.0,0.13329837]
[1731279313589,0.127012,80584.0,80578.0,0.13329837]
[1731279314116,0.002918,80584.0,80578.0,0.13329837]
[1731279315489,0.002918,80584.0,80578.0,0.00919537]
[1731279315751,0.002918,80584.0,80576.0,0.14039135]
[1731279315752,0.002918,80584.0,80577.0,0.00919537]
[1731279315955,0.124096,80583.0,80576.0,0.14039135]
[1731279316188,0.124096,80583.0,80577.0,0.00919537]
[1731279316363,0.002918,80584.0,80577.0,0.124104]
[1731279316620,0.496386,80583.0,80578.0,0.00919537]
[1731279316836,0.248193,80583.0,80576.0,0.01624576]
[1731279317061,0.124105,80577.0,80569.0,0.124115]
[1731279317277,0.00109349,80579.0,80570.0,0.13331037]
[1731279317491,0.124105,80577.0,80571.0,0.00919537]
[1731279317659,0.00579033,80576.0,80571.0,0.00919537]
[1731279317880,0.124111,80573.0,80569.0,0.00919537]
[1731279318019,0.00168,80579.0,80569.0,0.00919537]
[1731279318020,0.124115,80570.0,80569.0,0.00919537]
[1731279318229,0.00578703,80575.0,80565.0,0.01624361]
[1731279318230,0.124121,80566.0,80565.0,0.01624361]
[1731279318421,0.124121,80566.0,80558.0,0.13332937]
[1731279318619,0.124124,80565.0,80560.0,0.18577692]
[1731279318820,0.18577692,80573.0,80561.0,0.00909847]
[1731279319049,0.12594221,80572.0,80558.0,0.01645146]
[1731279319264,0.12414,80554.0,80553.0,0.00909847]
[1731279319496,0.124141,80554.0,80547.0,0.00909847]
[1731279319667,0.248265,80559.0,80548.0,0.30992492]
[1731279319867,0.248265,80559.0,80549.0,0.00909847]
[1731279319868,0.124141,80554.0,80549.0,0.00909847]
[1731279320113,0.124146,80550.0,80549.0,0.00909847]
[1731279320326,0.005,80556.0,80532.0,0.00910697]
[1731279320534,0.005,80556.0,80538.0,0.18577692]
[1731279320535,0.124163,80539.0,80538.0,0.18577692]
[1731279320914,0.00846664,80539.0,80532.0,0.124173]
[1731279321082,0.00846664,80539.0,80524.0,0.24837]
[1731279321299,0.12417,80535.0,80529.0,0.30995492]
[1731279321622,0.248329,80538.0,80525.0,0.248367]
[1731279321623,0.00749454,80538.0,80525.0,0.248367]
[1731279321797,0.00748701,80534.0,80524.0,0.01626835]
[1731279321990,0.12417,80535.0,80528.0,0.124178]
[1731279322187,0.00748513,80533.0,80523.0,0.248375]
[1731279322385,0.248334,80537.0,80523.0,0.248375]
[1731279322386,0.00748701,80534.0,80524.0,0.1]
[1731279322632,0.00742887,80532.0,80528.0,0.124179]
[1731279322841,0.00741776,80533.0,80528.0,0.124179]
[1731279323065,0.007414,80531.0,80524.0,0.1]
[1731279323325,0.124178,80530.0,80524.0,0.224185]
[1731279323519,0.00741212,80530.0,80525.0,0.124184]
[1731279323670,0.13159012,80530.0,80524.0,0.1]
[1731279323866,0.13159012,80530.0,80524.0,0.124186]
[1731279324116,0.18577692,80526.0,80517.0,0.01640527]
[1731279324375,0.124195,80519.0,80518.0,0.18577692]
[1731279324593,0.00092704,80525.0,80500.0,0.253446]
[1731279324814,0.00090854,80519.0,80513.0,0.18577692]
[1731279325015,0.00090854,80519.0,80512.0,0.124204]
[1731279325016,0.124196,80518.0,80512.0,0.124204]
[1731279325323,0.13248703,80517.0,80511.0,0.124206]
[1731279325514,0.13248703,80517.0,80510.0,0.124206]
[1731279325723,0.00829003,80517.0,80505.0,0.37437321]
[1731279325946,0.248386,80520.0,80512.0,0.124204]
[1731279326147,0.00738578,80516.0,80505.0,0.12594221]
[1731279326350,0.124198,80517.0,80510.0,0.124206]
[1731279326554,0.124205,80512.0,80506.0,0.124213]
[1731279326778,0.124204,80513.0,80507.0,0.124212]
[1731279326985,0.124204,80513.0,80501.0,0.01637145]
[1731279326986,0.124209,80509.0,80504.0,0.1]
[1731279327193,0.124209,80509.0,80503.0,0.1]
[1731279327398,0.00737073,80508.0,80503.0,0.22594221]
[1731279327801,0.248394,80517.0,80503.0,0.22594221]
[1731279327999,0.124197,80517.0,80503.0,0.22594221]
[1731279328212,0.0072244,80517.0,80506.0,0.18577692]
[1731279328443,0.0072244,80517.0,80503.0,0.1]
[1731279328444,0.0072244,80517.0,80507.0,0.12842618]
[1731279328658,0.124187,80524.0,80507.0,0.12842618]
[1731279328810,0.0072244,80517.0,80507.0,0.12842618]
[1731279329022,0.124187,80524.0,80508.0,0.1]
[1731279329249,0.124185,80525.0,80508.0,0.1]
[1731279329446,0.00723569,80523.0,80508.0,0.1]
[1731279329651,0.00723757,80524.0,80510.0,0.1]
[1731279330008,0.18577692,80548.0,80530.0,0.005]
[1731279330171,0.18577692,80535.0,80534.0,0.25080393]
[1731279330374,0.18577692,80548.0,80534.0,0.25080393]
[1731279330375,0.00728083,80547.0,80541.0,0.005]
[1731279330603,0.18577692,80548.0,80547.0,0.247151]
[1731279330737,0.18577692,80548.0,80547.0,0.37309321]
[1731279330969,0.124118,80569.0,80557.0,0.124135]
[1731279331169,0.18577692,80573.0,80557.0,0.22594221]
[1731279331397,0.18577692,80572.0,80571.0,0.124114]
[1731279331773,0.00168,80579.0,80575.0,0.124107]
[1731279331982,0.00168,80579.0,80575.0,0.124106]
[1731279332181,0.00168,80579.0,80567.0,0.49648]
[1731279332436,0.00168,80579.0,80575.0,0.124106]
[1731279332738,0.00168,80579.0,80578.0,0.224103]
[1731279336050,0.00168,80579.0,80578.0,0.23873268]
[1731279336402,0.00168,80579.0,80578.0,0.23872881]
[1731279336786,0.00168,80579.0,80578.0,0.23729454]
[1731279336989,0.00168,80579.0,80578.0,0.25192091]
[1731279337865,0.002918,80584.0,80579.0,0.1]
[1731279338074,0.002918,80584.0,80582.0,0.124097]
[1731279338284,0.14615592,80591.0,80582.0,0.124097]
[1731279338536,0.00578174,80590.0,80582.0,0.01462637]
[1731279338711,0.00578174,80590.0,80586.0,0.12409]
[1731279338913,0.000703,80591.0,80586.0,0.12409]
[1731279340008,0.000703,80591.0,80587.0,0.124089]
[1731279340205,0.000703,80591.0,80585.0,0.01462637]
[1731279340427,0.124787,80591.0,80585.0,0.124091]
[1731279340651,0.124787,80591.0,80582.0,0.01462637]
[1731279340868,0.0058639,80590.0,80583.0,0.248191]
[1731279341070,0.0058639,80590.0,80586.0,0.12409]
[1731279341491,0.0058639,80590.0,80589.0,0.124086]
[1731279341716,0.000839,80590.0,80589.0,0.124086]
[1731279342352,0.248138,80601.0,80586.0,0.01462637]
[1731279342353,0.18577692,80600.0,80586.0,0.01462637]
[1731279342569,0.0058639,80590.0,80589.0,0.124086]
[1731279342768,0.18577692,80600.0,80595.0,0.124077]
[1731279343198,0.124068,80601.0,80595.0,0.124077]
[1731279343847,0.248125,80605.0,80595.0,0.124077]
[1731279344053,0.124065,80603.0,80595.0,0.124077]
[1731279344631,0.000703,80611.0,80595.0,0.124077]
[1731279345166,0.124756,80611.0,80597.0,0.124072]
[1731279345372,0.124756,80611.0,80590.0,0.18577692]
[1731279345373,0.18577692,80600.0,80596.0,0.01462637]
[1731279345531,0.000703,80611.0,80592.0,0.11462637]
[1731279345734,0.124059,80607.0,80594.0,0.124077]
[1731279345981,0.124062,80605.0,80592.0,0.11462637]
[1731279346210,0.248117,80607.0,80592.0,0.11462637]
[1731279346211,0.124059,80607.0,80595.0,0.124076]
[1731279346417,0.124059,80607.0,80595.0,0.124075]
[1731279347076,0.30983192,80609.0,80597.0,0.124072]
[1731279347709,0.124057,80608.0,80597.0,0.124072]
[1731279348108,0.18577692,80609.0,80598.0,0.124071]
[1731279348318,0.124054,80610.0,80598.0,0.124071]
[1731279348319,0.000703,80611.0,80598.0,0.124072]
[1731279348534,0.124056,80609.0,80598.0,0.124072]
[1731279349157,0.12664521,80611.0,80596.0,0.01462637]
[1731279349363,0.124057,80608.0,80598.0,0.124072]
[1731279349568,0.124057,80608.0,80595.0,0.248153]
[1731279349569,0.124057,80608.0,80597.0,0.124074]
[1731279349771,0.12664521,80611.0,80597.0,0.01462637]
[1731279350025,0.124059,80607.0,80597.0,0.30985092]
[1731279350227,0.124059,80607.0,80598.0,0.124072]
[1731279350819,0.248111,80609.0,80598.0,0.124072]
[1731279351034,0.124058,80607.0,80598.0,0.124072]
[1731279351411,0.12664521,80611.0,80597.0,0.18577692]
[1731279351607,0.124062,80605.0,80597.0,0.18577692]
[1731279351808,0.124059,80607.0,80597.0,0.30984892]
[1731279352041,0.124057,80608.0,80599.0,0.124069]
[1731279352581,0.12664521,80611.0,80597.0,0.01457736]
[1731279352582,0.000703,80611.0,80598.0,0.1]
[1731279352711,0.000703,80611.0,80610.0,0.124054]
[1731279353102,0.000703,80611.0,80609.0,0.01457264]
[1731279353299,0.000703,80611.0,80608.0,0.124056]
[1731279353780,0.000703,80611.0,80607.0,0.20034956]
[1731279353953,0.000704,80612.0,80605.0,0.14178929]
[1731279353954,0.000704,80612.0,80605.0,0.15636193]
[1731279354131,0.000704,80612.0,80611.0,0.124052]
[1731279355995,0.000704,80616.0,80614.0,0.124046]
[1731279356202,0.000704,80616.0,80615.0,0.124046]
[1731279356825,0.000704,80616.0,80613.0,0.13862164]
[1731279357030,0.000704,80616.0,80611.0,0.01457264]
[1731279357210,0.000704,80616.0,80614.0,0.124046]
[1731279357417,0.000704,80616.0,80615.0,0.13861864]
[1731279358222,0.000704,80616.0,80615.0,0.124046]
[1731279358423,0.40013915,80621.0,80615.0,0.124046]
[1731279358624,0.124041,80619.0,80616.0,0.01457264]
[1731279358911,0.124041,80619.0,80617.0,0.01457264]
[1731279359111,0.124041,80619.0,80618.0,0.01457264]
[1731279360150,0.248069,80623.0,80618.0,0.01457264]
[1731279360465,0.27610215,80626.0,80619.0,0.01457264]
[1731279360661,0.124037,80621.0,80620.0,0.01457264]
[1731279362288,0.52416115,80626.0,80620.0,0.01457264]
[1731279362289,0.27610215,80626.0,80620.0,0.01457264]
[1731279362513,0.124035,80622.0,80621.0,0.01457264]
[1731279363290,0.27610215,80626.0,80621.0,0.01457264]
[1731279363496,0.00825671,80622.0,80620.0,0.013139]
[1731279363674,0.52416115,80626.0,80617.0,0.124042]
[1731279364012,0.52416115,80626.0,80609.0,0.1]
[1731279364013,0.124032,80624.0,80619.0,0.124039]
[1731279364230,0.124036,80622.0,80616.0,0.124044]
[1731279364379,0.00832217,80625.0,80612.0,0.248102]
[1731279364576,0.124036,80622.0,80616.0,0.124044]
[1731279365005,0.124036,80622.0,80614.0,0.248095]
[1731279365354,0.124036,80622.0,80617.0,0.124043]
[1731279365573,0.124036,80622.0,80614.0,0.248095]
[1731279365574,0.124038,80621.0,80619.0,0.00168]
[1731279365806,0.124878,80621.0,80619.0,0.00168]
[1731279366595,0.00084,80621.0,80619.0,0.00168]
[1731279366814,0.00084,80621.0,80620.0,0.124038]
[1731279367668,0.00914561,80621.0,80620.0,0.124038]
[1731279367891,0.00084,80621.0,80620.0,0.124038]
[1731279368456,0.00650988,80621.0,80620.0,0.124038]
[1731279368626,0.00084,80621.0,80620.0,0.124038]
[1731279368830,0.00664614,80621.0,80620.0,0.124038]
[1731279369037,0.00084,80621.0,80620.0,0.124038]
[1731279369458,0.00664668,80621.0,80620.0,0.124038]
[1731279369659,0.00084,80621.0,80620.0,0.124038]
[1731279369861,0.00580668,80621.0,80619.0,0.00168]
[1731279370076,0.33048021,80620.0,80619.0,0.00168]
[1731279370300,0.33628359,80620.0,80619.0,0.00168]
[1731279370739,0.33828359,80620.0,80619.0,0.00168]
[1731279370951,0.34628359,80620.0,80619.0,0.00168]
[1731279371095,0.124072,80598.0,80597.0,0.18577692]
[1731279371501,0.124072,80598.0,80582.0,0.248193]
[1731279371502,0.124075,80596.0,80590.0,0.01299961]
[1731279371909,0.12522084,80596.0,80590.0,0.01299961]
[1731279372284,0.00114584,80596.0,80590.0,0.26116661]
[1731279372645,0.0466,80600.0,80594.0,0.124077]
[1731279372788,0.124072,80599.0,80593.0,0.124078]
[1731279372989,0.25553794,80599.0,80590.0,0.01299961]
[1731279373341,0.00739494,80599.0,80590.0,0.01299961]
[1731279374257,0.124074,80597.0,80590.0,0.01299961]
[1731279374577,0.124072,80598.0,80592.0,0.12408]
[1731279374714,0.124072,80598.0,80590.0,0.01299961]
[1731279374715,0.00728783,80596.0,80590.0,0.01299961]
[1731279374926,0.00728783,80596.0,80592.0,0.124081]
[1731279375144,0.00114584,80596.0,80592.0,0.124081]
[1731279375542,0.00114584,80596.0,80593.0,0.124079]
[1731279375844,0.00114584,80596.0,80591.0,0.124082]
[1731279376660,0.12522084,80596.0,80590.0,0.01299961]
[1731279376871,0.00114584,80596.0,80592.0,0.12408]
[1731279377072,0.00114584,80596.0,80594.0,0.124078]
[1731279377280,0.00114584,80596.0,80595.0,0.1258599]
[1731279377612,0.00727809,80596.0,80595.0,0.0017829]
[1731279377962,0.124066,80602.0,80595.0,0.0017829]
[1731279378132,0.248124,80605.0,80595.0,0.1258589]
[1731279378341,0.00728748,80601.0,80595.0,0.0017829]
[1731279378489,0.124066,80602.0,80595.0,0.0017829]
[1731279378696,0.0072856,80600.0,80595.0,0.0017829]
[1731279378896,0.00728748,80601.0,80595.0,0.0017829]
[1731279379126,0.00728373,80599.0,80595.0,0.1258589]
[1731279379332,0.248124,80605.0,80595.0,0.0017829]
[1731279379333,0.0072856,80600.0,80595.0,0.0017829]
[1731279379528,0.00728185,80598.0,80595.0,0.0017829]
[1731279379706,0.124066,80602.0,80595.0,0.1258589]
[1731279379707,0.00728373,80599.0,80595.0,0.1258589]
[1731279379906,0.00727997,80597.0,80596.0,0.124075]
[1731279380118,0.124063,80604.0,80597.0,0.124074]
[1731279380389,0.248126,80604.0,80595.0,0.1258589]
[1731279380651,0.00845863,80603.0,80596.0,0.00916832]
[1731279380848,0.00845863,80603.0,80597.0,0.00916832]
[1731279381074,0.00845863,80603.0,80602.0,0.124066]
[1731279381319,0.00845863,80603.0,80602.0,0.49872099]
[1731279381495,0.18577692,80619.0,80618.0,0.124041]
[1731279381808,0.18577692,80619.0,80618.0,0.13320932]
[1731279381961,0.00569194,80619.0,80618.0,0.13320932]
[1731279382171,0.00084,80621.0,80620.0,0.124038]
[1731279382371,0.00084,80621.0,80620.0,0.13320632]
[1731279382947,0.301036,80634.0,80620.0,0.13320632]
[1731279382948,0.000703,80633.0,80629.0,0.124024]
[1731279383179,0.000703,80633.0,80629.0,0.42771916]
[1731279383378,0.000703,80633.0,80629.0,0.43523918]
[1731279383583,0.000703,80633.0,80632.0,0.22402]
[1731279383830,0.000703,80633.0,80632.0,0.22035819]
[1731279384392,0.000703,80633.0,80632.0,0.10916832]
[1731279384613,0.000703,80633.0,80632.0,0.00916832]
[1731279385069,0.124721,80633.0,80632.0,0.00916832]
[1731279385294,0.25566321,80633.0,80632.0,0.00916832]
[1731279385505,0.129041,80618.0,80617.0,0.00916832]
[1731279385704,0.5302725,80618.0,80617.0,0.00916832]
[1731279386036,0.139043,80617.0,80616.0,0.00916832]
[1731279386192,0.005,80613.0,80605.0,0.00916832]
[1731279386402,0.005,80613.0,80595.0,0.0017829]
[1731279386403,0.124061,80605.0,80595.0,0.0017829]
[1731279386567,0.124061,80605.0,80604.0,0.19491931]
[1731279386764,0.124073,80598.0,80595.0,0.0017829]
[1731279387368,0.124074,80597.0,80596.0,0.00914081]
[1731279387824,0.24814,80600.0,80596.0,0.00914081]
[1731279388035,0.124072,80598.0,80597.0,0.00914081]
[1731279390402,0.124074,80597.0,80596.0,0.00914081]
[1731279391525,0.124075,80596.0,80595.0,0.0017829]
[1731279397172,0.248146,80598.0,80595.0,0.0017829]
[1731279397380,0.124075,80596.0,80595.0,0.0017829]
[1731279398300,0.000841,80600.0,80596.0,0.1]
[1731279398519,0.000841,80600.0,80597.0,0.00915]
[1731279398684,0.000841,80600.0,80598.0,0.00915]
[1731279398849,0.000841,80600.0,80599.0,0.00915]
[1731279401562,0.14161792,80606.0,80597.0,0.0024812]
[1731279401743,0.14161792,80606.0,80596.0,0.22594221]
[1731279401962,0.124062,80605.0,80596.0,0.22594221]
[1731279402854,0.124062,80605.0,80595.0,0.0017829]
[1731279402855,0.248123,80605.0,80595.0,0.0017829]
[1731279403067,0.14161792,80606.0,80596.0,0.1]
[1731279403273,0.248126,80604.0,80596.0,0.1]
[1731279403503,0.124069,80600.0,80596.0,0.1]
[1731279404013,0.124067,80602.0,80596.0,0.1]
[1731279404168,0.14161792,80606.0,80596.0,0.1]
[1731279404371,0.248123,80605.0,80596.0,0.1]
[1731279404571,0.124067,80602.0,80596.0,0.1]
[1731279404776,0.248126,80604.0,80595.0,0.0017829]
[1731279405260,0.12407,80600.0,80595.0,0.0017829]
[1731279405466,0.124075,80596.0,80595.0,0.0017829]
[1731279405642,0.18577692,80611.0,80595.0,0.0017829]
[1731279405872,0.124075,80596.0,80595.0,0.0017829]
[1731279407339,0.173375,80596.0,80595.0,0.0017829]
[1731279407563,0.29931721,80596.0,80595.0,0.0017829]
[1731279411057,0.30431721,80596.0,80595.0,0.0017829]
[1731279412425,0.30631721,80596.0,80595.0,0.0017829]
[1731279413407,0.25701721,80596.0,80595.0,0.0017829]
[1731279413618,0.25501721,80596.0,80595.0,0.0017829]
[1731279415475,0.13094221,80596.0,80595.0,0.0017829]
[1731279415701,0.13294221,80596.0,80595.0,0.0017829]
[1731279416077,0.25701721,80596.0,80595.0,0.0017829]
[1731279416718,0.25501721,80596.0,80595.0,0.0017829]
[1731279417352,0.25701721,80596.0,80595.0,0.0017829]
[1731279419481,0.25501721,80596.0,80595.0,0.0017829]
[1731279419896,0.25701721,80596.0,80595.0,0.0017829]
[1731279421299,0.25501721,80596.0,80595.0,0.0017829]
[1731279421707,0.25701721,80596.0,80595.0,0.0017829]
[1731279422569,0.25501721,80596.0,80595.0,0.0017829]
[1731279423333,0.25701721,80596.0,80595.0,0.0017829]
[1731279425656,0.25501721,80596.0,80595.0,0.0017829]
[1731279425868,0.25701721,80596.0,80595.0,0.0017829]
[1731279426929,0.124075,80596.0,80595.0,0.0017829]
[1731279427931,0.248126,80604.0,80595.0,0.0017829]
[1731279428150,0.248135,80601.0,80595.0,0.0017829]
[1731279428347,0.124901,80606.0,80596.0,0.248151]
[1731279428506,0.124901,80606.0,80599.0,0.12407]
[1731279428859,0.124901,80606.0,80600.0,0.15812844]
[1731279429421,0.124062,80605.0,80600.0,0.15812844]
[1731279430033,0.124064,80604.0,80600.0,0.15812844]
[1731279430673,0.000841,80606.0,80600.0,0.15812844]
[1731279431239,0.000841,80606.0,80605.0,0.124061]
[1731279431587,0.000841,80606.0,80605.0,0.224061]
[1731279431794,0.000841,80606.0,80605.0,0.43028416]
[1731279431969,0.18577692,80620.0,80619.0,0.12404]
[1731279432158,0.000703,80635.0,80628.0,0.224026]
[1731279432790,0.000703,80635.0,80629.0,0.224024]
[1731279435151,0.000703,80635.0,80629.0,0.37296621]
[1731279435728,0.000703,80635.0,80629.0,0.4071466]
[1731279435933,0.000703,80635.0,80632.0,0.22402]
[1731279436461,0.000703,80635.0,80632.0,0.34996221]
[1731279438088,0.000703,80635.0,80632.0,0.37296221]
[1731279439450,0.000703,80635.0,80632.0,0.51656221]
[1731279439849,0.000703,80635.0,80632.0,0.65837152]
[1731279440669,0.000703,80638.0,80637.0,0.257012]
[1731279440915,0.000703,80638.0,80637.0,0.38795421]
[1731279443378,0.0134083,80655.0,80645.0,0.005]
[1731279443582,0.0134083,80655.0,80654.0,0.223986]
[1731279445436,0.0134083,80655.0,80650.0,0.1]
[1731279445635,0.0134083,80655.0,80643.0,0.1]
[1731279445910,0.0134083,80655.0,80652.0,0.223989]
[1731279446115,0.0134083,80655.0,80652.0,0.1]